bitfinex-derivatives/quotes_ETHF0:USTF0_20250528
["timestamp","ask_amount","ask_price","bid_price","bid_amount"]
[1748443759541,0.75758,2639.0,2638.8,0.75761]
[1748443759843,0.75761,2638.9,2638.8,0.75761]
[1748443760146,0.75766,2638.8,2638.7,0.75766]
[1748443760540,0.75764,2638.8,2638.7,0.75764]
[1748443760842,3.96542,2638.9,2638.8,0.75763]
[1748443761041,0.75764,2638.8,2638.7,0.75764]
[1748443761644,0.75759,2639.0,2638.9,0.7576]
[1748443762141,0.75759,2639.0,2638.7,3.2078]
[1748443762142,0.75764,2638.8,2638.7,0.75764]
[1748443762343,1.9365,2639.1,2638.5,1.8167]
[1748443762541,1.9365,2639.1,2639.0,0.75757]
[1748443762742,0.00569292,2639.2,2639.1,0.75755]
[1748443763845,0.00569292,2639.2,2639.0,3.2078]
[1748443764047,0.00569292,2639.2,2639.1,0.75755]
[1748443764250,0.75759,2639.0,2638.9,0.75757]
[1748443764749,0.75758,2639.1,2639.0,0.75756]
[1748443766849,0.75771,2638.6,2638.5,0.75769]
[1748443767156,3.96547,2638.7,2638.6,0.75769]
[1748443767449,3.96547,2638.7,2638.3,1.8087]
[1748443767450,3.2078,2638.7,2638.3,1.8087]
[1748443767650,0.75775,2638.4,2638.3,2.56645]
[1748443767849,0.75767,2638.7,2638.6,0.75769]
[1748443768144,0.75766,2638.8,2638.7,0.75764]
[1748443768351,0.75769,2638.7,2638.6,0.75767]
[1748443768653,0.75771,2638.6,2638.5,0.75769]
[1748443769342,0.75776,2638.5,2638.4,0.75773]
[1748443769652,0.7578,2638.3,2638.2,0.75777]
[1748443769857,0.75777,2638.4,2638.3,0.75775]
[1748443771453,3.96553,2638.5,2638.4,0.75775]
[1748443771659,5.1929,2639.1,2638.5,1.8943]
[1748443771846,0.75765,2638.8,2638.7,0.75763]
[1748443772651,0.75769,2638.6,2638.5,2.73788]
[1748443773250,5.10191,2638.8,2638.1,7.02639332]
[1748443773458,0.75777,2638.4,2638.3,0.75775]
[1748443774552,1.8963,2638.5,2638.1,0.75873332]
[1748443774553,0.75781,2638.2,2638.1,0.75873332]
[1748443774754,2.6686,2638.3,2638.2,0.75781]
[1748443774952,1.9108,2638.3,2638.2,0.75781]
[1748443775459,0.75771,2638.6,2638.5,0.75769]
[1748443775959,2.66848,2638.7,2638.6,0.75769]
[1748443776158,0.75773,2638.6,2638.5,0.7577]
[1748443776559,0.75775,2638.4,2638.3,2.69785]
[1748443776763,0.75781,2638.2,2638.1,0.75872332]
[1748443776954,0.75777,2638.4,2638.3,0.75775]
[1748443777858,0.75771,2638.6,2638.5,0.75767]
[1748443778058,3.2078,2638.8,2638.7,0.75763]
[1748443778059,0.75765,2638.8,2638.7,0.75763]
[1748443778463,0.7577,2638.7,2638.6,0.75767]
[1748443778656,0.75763,2638.9,2638.8,0.7576]
[1748443778964,0.75767,2638.8,2638.7,0.75764]
[1748443782667,3.96547,2638.8,2638.7,0.75764]
[1748443783167,0.7577,2638.7,2638.6,0.75766]
[1748443783666,0.75761,2639.0,2638.9,0.75758]
[1748443785463,3.96537,2639.1,2639.0,0.75758]
[1748443786166,0.75763,2639.0,2638.9,0.75759]
[1748443789571,0.75763,2639.0,2638.6,1.8093]
[1748443789973,0.75763,2638.9,2638.8,0.75759]
[1748443790172,3.96537,2639.1,2639.0,0.75758]
[1748443790372,0.75757,2639.1,2639.0,0.75758]
[1748443791065,3.96537,2639.1,2639.0,0.75758]
[1748443791267,3.2078,2639.1,2639.0,0.75758]
[1748443791467,1.99079292,2639.2,2638.8,6.90839]
[1748443791667,0.75761,2639.0,2638.9,0.75756]
[1748443792169,0.75769,2638.7,2638.6,0.75765]
[1748443792982,0.75764,2638.9,2638.8,0.75761]
[1748443793779,2.64284,2638.9,2638.8,0.75761]
[1748443795383,0.75763,2638.8,2638.7,2.68744]
[1748443795580,2.65123,2638.8,2638.7,2.68744]
[1748443796484,11.99553,2638.8,2638.1,0.00091332]
[1748443796680,0.7578,2638.3,2638.2,0.75778]
[1748443796884,0.7578,2638.3,2638.2,2.60608]
[1748443797081,2.65137,2638.4,2638.3,0.75778]
[1748443797382,0.75781,2638.2,2638.1,0.75874332]
[1748443797577,3.96561,2638.2,2638.1,0.00091332]
[1748443797779,0.75804,2637.4,2637.3,3.09759637]
[1748443797984,3.96584,2637.4,2637.3,3.09759637]
[1748443798984,0.75809,2637.2,2637.1,0.00569292]
[1748443799582,5.75809,2637.2,2637.1,0.00569292]
[1748443799789,0.75827,2636.6,2636.5,3.6444]
[1748443799983,0.75827,2636.6,2636.5,4.40269]
[1748443800389,0.75835,2636.3,2636.2,4.04079908]
[1748443800586,0.75835,2636.3,2636.2,0.07463908]
[1748443800788,3.96615,2636.3,2636.2,0.07463908]
[1748443801289,0.75841,2636.1,2636.0,0.00569292]
[1748443801489,0.75841,2636.1,2636.0,1.88699292]
[1748443802687,0.75841,2636.1,2636.0,0.00569292]
[1748443802990,0.75841,2636.1,2636.0,0.76413292]
[1748443803187,0.75841,2636.1,2636.0,0.00569292]
[1748443803397,0.75841,2636.1,2636.0,1.87159292]
[1748443803593,0.75841,2636.1,2636.0,0.00569292]
[1748443806095,1.89651,2635.5,2634.6,3.2078]
[1748443806289,0.75874,2635.0,2634.9,0.75874]
[1748443806486,3.2078,2635.1,2634.0,3.2078]
[1748443806687,3.2078,2635.1,2633.9,1.89758]
[1748443806688,3.2078,2634.7,2634.4,0.7589]
[1748443806888,1.9012,2634.6,2634.3,2.71032]
[1748443807197,3.2078,2634.4,2634.2,0.080332]
[1748443807492,0.1138,2634.5,2634.4,0.7589]
[1748443807890,0.75893,2634.3,2634.2,0.00569292]
[1748443808100,3.96673,2634.3,2634.2,0.00569292]
[1748443808293,3.2078,2634.3,2634.2,0.76465292]
[1748443808491,0.1138,2634.5,2634.3,0.75892]
[1748443808691,0.75892,2634.4,2634.2,0.00569292]
[1748443808895,0.1138,2634.5,2634.4,0.7589]
[1748443809098,0.8727,2634.5,2634.3,0.75892]
[1748443809395,0.7589,2634.4,2634.3,0.75892]
[1748443809700,0.75893,2634.3,2634.2,0.76465292]
[1748443809996,0.75891,2634.4,2634.3,0.75893]
[1748443810390,0.1138,2634.5,2634.4,0.7589]
[1748443812498,0.87268,2634.5,2634.4,0.7589]
[1748443812693,0.7589,2634.4,2634.3,0.75891]
[1748443812895,0.75893,2634.3,2634.2,0.76463292]
[1748443813194,3.96673,2634.3,2634.2,0.00569292]
[1748443813394,3.96673,2634.3,2634.2,0.76465292]
[1748443813590,3.2078,2634.3,2634.2,0.76465292]
[1748443814199,3.96673,2634.3,2634.2,0.00569292]
[1748443814497,1.89747,2634.1,2633.2,3.2078]
[1748443814699,0.75925,2633.2,2633.1,0.75926]
[1748443814995,0.7593,2633.0,2632.9,1.8385]
[1748443815197,3.2078,2633.0,2632.4,3.6666]
[1748443815398,3.2078,2633.0,2632.5,3.73712]
[1748443815604,0.75935,2632.9,2632.5,1.84419292]
[1748443815800,3.21349292,2633.0,2632.9,0.75933]
[1748443816102,0.00569292,2633.0,2632.9,0.75933]
[1748443816500,0.00569292,2633.0,2632.9,8.96713]
[1748443816698,3.2078,2633.7,2632.9,3.2078]
[1748443816902,3.2078,2633.0,2632.9,0.75933]
[1748443817105,0.75928,2633.1,2633.0,0.7593]
[1748443817296,5.10588,2633.3,2632.8,0.75935]
[1748443817497,3.2078,2632.9,2632.8,0.75935]
[1748443818305,3.2078,2632.9,2632.5,0.76512292]
[1748443818306,0.75942,2632.6,2632.5,0.76512292]
[1748443818505,3.2078,2632.6,2632.5,0.76512292]
[1748443819500,3.2078,2632.6,2632.5,0.839762]
[1748443819712,3.2078,2633.0,2632.9,0.75933]
[1748443820304,0.00569292,2633.1,2633.0,0.7593]
[1748443821402,2.92e-06,2633.1,2633.0,8.9671]
[1748443821703,2.92e-06,2633.1,2633.0,3.9671]
[1748443821905,2.92e-06,2633.1,2633.0,8.9671]
[1748443823102,2.92e-06,2633.1,2633.0,0.7593]
[1748443823809,2.92e-06,2633.1,2633.0,3.9671]
[1748443824302,2.92e-06,2633.2,2633.1,0.75927]
[1748443824507,2.92e-06,2633.2,2633.1,2.56317]
[1748443825600,5.84e-06,2633.4,2633.3,0.75921]
[1748443825805,5.84e-06,2633.4,2633.3,8.96701]
[1748443826200,5.84e-06,2633.4,2633.3,0.75921]
[1748443826806,5.84e-06,2633.4,2632.7,3.60313]
[1748443826807,0.75941,2632.6,2632.5,0.080332]
[1748443827005,0.75941,2632.6,2631.6,1.89925]
[1748443827006,3.2078,2632.6,2631.6,0.7597]
[1748443827200,3.2078,2632.6,2631.5,1.7414]
[1748443827201,1.89876,2632.3,2631.7,1.7617]
[1748443827506,3.95995006,2631.8,2631.7,1.7617]
[1748443827703,3.20031006,2631.8,2631.0,1.8997]
[1748443827902,1.7501,2631.7,2631.3,1.89943]
[1748443828105,1.7501,2631.7,2631.5,0.75971]
[1748443828305,1.7501,2631.7,2631.6,2.5214]
[1748443828513,4.9579,2631.7,2631.6,2.5214]
[1748443829807,4.9579,2631.7,2631.6,0.7597]
[1748443830005,4.9579,2631.7,2631.2,0.00569292]
[1748443830209,3.2078,2631.4,2631.3,0.75979]
[1748443830404,3.2078,2631.4,2631.2,0.00569292]
[1748443830706,0.75979,2631.3,2631.2,0.00569292]
[1748443831008,1.7602,2631.3,2629.5,3.2078]
[1748443831205,3.2078,2630.5,2629.7,1.7519]
[1748443831402,3.2078,2630.2,2630.1,0.76011]
[1748443831607,3.96791,2630.2,2630.1,0.07604273]
[1748443831808,3.2078,2630.2,2630.1,0.07604273]
[1748443832009,3.96791,2630.2,2630.1,0.07604273]
[1748443832207,5.0713,2630.2,2630.1,0.07604273]
[1748443832409,5.83141,2630.2,2629.9,0.00569292]
[1748443832613,0.76016,2630.1,2629.9,0.08174143]
[1748443832814,1.8635,2630.0,2629.9,0.84194143]
[1748443833116,3.2078,2630.2,2630.0,0.76015]
[1748443833410,3.2078,2630.2,2630.0,0.76014]
[1748443833618,3.2078,2630.2,2630.1,0.76014]
[1748443834209,3.2078,2630.2,2629.9,0.08174143]
[1748443834403,1.8635,2630.1,2630.0,0.76015]
[1748443834606,3.2078,2630.2,2630.1,0.76014]
[1748443834807,1.39099292,2630.4,2630.3,0.76008]
[1748443835414,1.39099292,2630.4,2630.2,0.76008]
[1748443835610,4.9962,2630.3,2630.2,0.76008]
[1748443836215,5.75629,2630.3,2630.1,0.83477908]
[1748443836415,4.9962,2630.3,2630.1,0.07463908]
[1748443836712,4.9962,2630.3,2628.2,5.62765]
[1748443836713,1.90049,2629.9,2628.8,1.90128]
[1748443836913,3.2078,2629.5,2629.4,0.76034]
[1748443837122,4.9962,2629.8,2629.7,0.76025]
[1748443837509,1.7884,2629.8,2629.7,0.76025]
[1748443837711,4.59879292,2630.4,2630.3,0.70988]
[1748443837910,3.2078,2630.7,2630.2,3.2078]
[1748443838113,3.2078,2630.7,2630.3,0.76006]
[1748443838408,3.2078,2630.7,2630.5,0.76002]
[1748443838620,3.2078,2631.3,2630.2,1.9219]
[1748443838914,0.75977,2631.4,2631.3,0.75979]
[1748443839114,1.7761,2631.5,2631.3,0.75979]
[1748443839314,1.7761,2631.5,2631.4,0.75976]
[1748443839811,0.00570386,2631.6,2631.5,0.75973]
[1748443840206,0.75977,2631.4,2631.2,0.75981]
[1748443840411,3.2078,2631.3,2630.8,1.9219]
[1748443840617,3.2078,2631.3,2631.2,0.7598]
[1748443840812,0.75982,2631.2,2630.8,5.1297]
[1748443841012,0.75982,2631.2,2630.8,1.9219]
[1748443841312,3.2078,2631.0,2630.6,0.75999]
[1748443841517,0.75992,2630.9,2630.8,0.75993]
[1748443841718,3.96769,2631.0,2630.5,0.00570386]
[1748443841920,1.7465,2630.8,2630.7,0.75996]
[1748443842218,1.7465,2630.8,2630.5,0.00570386]
[1748443842428,3.96779,2630.6,2630.5,0.00570386]
[1748443843112,3.2078,2630.6,2630.5,0.76572386]
[1748443843312,0.75998,2630.7,2630.5,0.00570386]
[1748443843507,3.2078,2630.6,2630.5,0.76572386]
[1748443844027,3.2078,2630.8,2630.6,0.75998]
[1748443844313,1.655,2630.7,2630.5,0.00570386]
[1748443844519,2.41497,2630.7,2630.5,0.76570386]
[1748443844819,3.2078,2630.8,2630.7,0.75996]
[1748443845321,3.2078,2630.8,2630.6,2.50898]
[1748443845521,3.2078,2630.8,2630.5,0.00570386]
[1748443845723,1.655,2630.7,2630.6,0.75999]
[1748443846218,1.655,2630.7,2630.5,0.00570386]
[1748443846420,1.655,2630.7,2630.6,0.75999]
[1748443846626,1.655,2630.7,2630.6,2.50899]
[1748443846817,1.655,2630.7,2630.6,1.749]
[1748443847116,3.2078,2630.8,2630.7,0.75996]
[1748443847322,3.2078,2630.8,2630.5,0.00570386]
[1748443847323,0.75999,2630.6,2630.5,0.00570386]
[1748443847511,1.7697,2630.7,2630.5,0.00570386]
[1748443847709,1.7697,2630.7,2630.6,0.75999]
[1748443847915,3.96774,2630.8,2630.6,2.55949]
[1748443848120,3.2078,2630.8,2630.7,0.75996]
[1748443848626,4.9775,2630.8,2630.7,0.75996]
[1748443849130,3.2078,2631.5,2630.9,1.89977]
[1748443849417,0.75982,2631.2,2631.0,1.7995]
[1748443849622,0.75982,2631.2,2631.1,0.75985]
[1748443849922,0.75982,2631.2,2631.0,1.7995]
[1748443849923,0.75978,2631.4,2631.3,0.75977]
[1748443850217,0.75984,2631.2,2631.0,1.7995]
[1748443850422,0.7598,2631.3,2631.2,0.7598]
[1748443850611,0.75985,2631.1,2631.0,1.7995]
[1748443851023,0.75983,2631.2,2631.1,0.75982]
[1748443851216,2.52947,2631.4,2631.3,0.75979]
[1748443851713,3.2078,2631.5,2631.4,0.75976]
[1748443851913,3.96753,2631.5,2631.4,0.75976]
[1748443852123,3.2078,2631.5,2631.4,0.75976]
[1748443852324,3.96753,2631.5,2631.4,0.75976]
[1748443853021,0.00570386,2631.6,2631.5,0.75973]
[1748443853622,0.00570386,2631.6,2631.5,2.45133]
[1748443854025,1.6714,2632.8,2631.5,6.6916]
[1748443854216,3.5021,2632.8,2632.7,0.75938]
[1748443854415,2.59007,2632.8,2632.3,1.89871]
[1748443854623,2.59007,2632.8,2632.4,1.7281]
[1748443854924,3.21350386,2632.9,2632.8,0.75933]
[1748443855119,0.75938,2632.7,2632.6,0.7594]
[1748443855321,0.75937,2632.8,2632.4,3.469]
[1748443855617,3.21350386,2632.9,2632.6,0.75939]
[1748443855823,0.7594,2632.7,2632.6,0.75939]
[1748443856218,1.8307,2632.8,2632.4,1.7409]
[1748443856716,0.75944,2632.5,2632.4,2.50036]
[1748443857024,1.8307,2632.8,2632.4,1.7409]
[1748443857227,0.00570386,2632.9,2632.4,3.63951]
[1748443857523,0.75943,2632.6,2632.5,0.75943]
[1748443857730,0.75944,2632.5,2632.4,1.7409]
[1748443857918,2.54674,2632.5,2632.4,1.7409]
[1748443858230,0.75947,2632.4,2632.3,0.00570386]
[1748443858524,5.75457,2632.4,2632.3,0.00570386]
[1748443860323,2.54677,2632.4,2632.3,0.00570386]
[1748443860824,5.75457,2632.4,2632.3,0.00570386]
[1748443861921,0.75936,2632.8,2632.7,0.75936]
[1748443862224,0.7594,2632.7,2632.6,0.7594]
[1748443862423,4.93930386,2632.9,2632.3,3.21350386]
[1748443862424,3.62421,2632.8,2632.3,3.21350386]
[1748443862628,1.7258,2632.8,2632.3,0.00570386]
[1748443862823,3.21350386,2632.9,2632.3,0.00570386]
[1748443862824,0.00570386,2632.9,2632.3,3.21350386]
[1748443863124,0.75947,2632.4,2632.3,0.00570386]
[1748443863725,2.49567,2632.4,2632.3,0.00570386]
[1748443866125,0.75947,2632.5,2632.4,0.75945]
[1748443866326,1.7421,2632.8,2632.7,0.75938]
[1748443866522,0.00570386,2632.9,2632.6,0.75938]
[1748443866523,0.75941,2632.7,2632.6,0.75938]
[1748443866724,6.84831,2632.8,2632.3,0.08034294]
[1748443866924,1.89847,2632.7,2632.3,0.08034294]
[1748443867128,0.75947,2632.4,2632.3,0.08034294]
[1748443867529,3.96726,2632.5,2632.3,0.08034294]
[1748443867730,3.96726,2632.5,2632.4,0.75947]
[1748443867936,0.75946,2632.5,2632.4,0.75947]
[1748443868325,0.00570386,2632.9,2632.8,0.75936]
[1748443870326,0.00570386,2632.9,2632.8,5.75936]
[1748443870533,0.00570386,2632.9,2632.8,0.75936]
[1748443871532,0.00570386,2632.9,2632.8,5.75936]
[1748443871735,3.2078,2633.8,2632.8,8.79669]
[1748443872038,2.49037,2633.8,2633.7,0.7591]
[1748443872241,0.75911,2633.7,2633.6,0.7591]
[1748443872436,3.629,2633.8,2633.3,1.7635]
[1748443872632,0.75918,2633.4,2633.3,2.52268]
[1748443873025,0.75917,2633.5,2633.4,0.75916]
[1748443873235,0.00570386,2633.6,2633.5,0.75915]
[1748443873534,0.00570386,2633.6,2633.4,0.75916]
[1748443873738,0.75915,2633.5,2633.4,1.8309]
[1748443874046,0.75929,2633.1,2633.0,0.75927]
[1748443874333,0.7593,2633.0,2632.9,1.8309]
[1748443875441,1.89842,2632.8,2632.3,0.00570386]
[1748443875735,1.7197,2632.9,2632.4,1.89868]
[1748443876040,1.7197,2632.9,2632.8,0.75936]
[1748443876337,0.75938,2632.8,2632.7,0.75937]
[1748443876734,0.75941,2632.7,2632.6,0.7594]
[1748443877243,0.75947,2632.4,2632.3,0.08034294]
[1748443877537,7.0052,2632.4,2630.9,3.2078]
[1748443877734,3.2078,2631.8,2631.2,1.7453]
[1748443877941,1.77,2631.7,2631.2,1.7453]
[1748443878238,1.77,2631.7,2631.5,0.75971]
[1748443878434,1.77,2631.7,2631.6,2.505]
[1748443878838,0.00570386,2631.9,2631.8,0.75964]
[1748443879535,0.00570386,2631.9,2631.6,1.7453]
[1748443879731,3.21350386,2631.9,2631.6,1.7453]
[1748443880040,1.77,2631.8,2631.7,0.75967]
[1748443880340,1.77,2631.8,2631.6,1.7453]
[1748443880533,0.75967,2631.7,2631.6,1.7453]
[1748443880736,2.52965,2631.8,2631.7,0.75967]
[1748443881939,1.77,2631.8,2631.7,0.75967]
[1748443882238,0.00570386,2631.9,2631.8,0.75964]
[1748443882439,0.00570386,2631.9,2631.8,0.83427908]
[1748443882643,0.76532386,2631.9,2631.8,0.07463908]
[1748443883140,3.97312386,2631.9,2631.8,0.07463908]
[1748443883540,0.76532386,2631.9,2631.8,0.07463908]
[1748443883840,3.97312386,2631.9,2631.8,0.07463908]
[1748443885740,3.97312386,2631.9,2631.8,0.83427908]
[1748443886041,3.97312386,2631.9,2631.8,0.07463908]
[1748443891245,3.21350386,2631.9,2631.8,0.83427908]
[1748443891541,3.97312386,2631.9,2631.8,0.83427908]
[1748443891736,3.97312386,2631.9,2631.8,0.07463908]
[1748443893247,3.97312386,2631.9,2631.3,0.00570386]
[1748443893248,0.75976,2631.4,2631.3,0.00570386]
[1748443893443,3.2078,2631.4,2631.3,0.76549386]
[1748443893746,3.96756,2631.4,2631.3,0.76549386]
[1748443894140,3.2078,2631.4,2631.3,0.76549386]
[1748443894337,2.51724,2631.5,2631.4,0.75976]
[1748443894544,0.00570386,2631.9,2631.5,1.89931]
[1748443894745,2.5172,2631.7,2631.6,0.7597]
[1748443895844,0.7597,2631.6,2631.5,2.44841]
[1748443896250,0.7597,2631.6,2631.5,1.6887]
[1748443896450,1.89929,2631.6,2631.3,0.00570386]
[1748443896650,0.75976,2631.4,2631.3,0.76548386]
[1748443896947,0.75969,2631.7,2631.6,0.75965]
[1748443897749,2.57886,2631.8,2631.7,0.75967]
[1748443897952,0.00570386,2631.9,2631.8,0.75964]
[1748443898547,0.00570386,2631.9,2631.4,1.7954]
[1748443898750,0.7597,2631.7,2631.6,0.75967]
[1748443899246,5.03270386,2631.9,2631.5,3.73302]
[1748443899453,0.7597,2631.7,2631.6,0.75967]
[1748443900248,0.75976,2631.4,2631.3,0.76549386]
[1748443901038,0.75975,2631.5,2631.4,0.75973]
[1748443901849,0.75976,2631.4,2631.3,0.76547386]
[1748443902150,1.5628,2631.4,2631.3,0.76547386]
[1748443903049,2.32256,2631.4,2631.3,0.76547386]
[1748443904648,2.32256,2631.4,2631.3,0.00570386]
[1748443905247,2.32256,2631.4,2631.3,0.76549386]
[1748443906349,5.53036,2631.4,2631.3,0.00570386]
[1748443906854,2.32256,2631.4,2631.3,0.76549386]
[1748443908351,3.2078,2631.7,2631.3,0.76549386]
[1748443908561,2.35479,2631.8,2631.7,0.75967]
[1748443908858,0.75967,2631.7,2631.6,2.36858]
[1748443909162,0.75967,2631.7,2631.4,3.41517]
[1748443909163,0.75973,2631.5,2631.4,1.5158]
[1748443909652,0.75973,2631.5,2631.4,2.27556]
[1748443909850,0.75973,2631.5,2631.4,1.5158]
[1748443910357,0.75973,2631.5,2631.4,3.1247]
[1748443910559,0.75973,2631.5,2631.4,3.88446]
[1748443911457,0.75973,2631.5,2631.4,3.1247]
[1748443911758,0.75973,2631.5,2631.4,3.88446]
[1748443911958,0.75973,2631.5,2631.4,3.1247]
[1748443913554,0.75973,2631.5,2631.4,3.88446]
[1748443913753,0.75973,2631.5,2631.4,3.1247]
[1748443913954,0.75973,2631.5,2631.4,3.88446]
[1748443914251,0.75973,2631.5,2631.4,3.1247]
[1748443918766,0.75973,2631.5,2631.4,3.88446]
[1748443920062,5.0,2631.5,2630.4,1.90011]
[1748443920261,5.0,2631.5,2630.8,1.89984]
[1748443920262,1.4725,2631.4,2630.8,1.89984]
[1748443920462,0.75984,2631.2,2631.1,0.75982]
[1748443920858,1.4725,2631.4,2630.9,1.486]
[1748443921060,0.75966,2631.8,2631.7,0.75964]
[1748443921259,0.75966,2631.8,2631.1,3.2078]
[1748443921260,0.7597,2631.7,2631.6,0.75968]
[1748443921459,0.7597,2631.7,2631.6,1.486]
[1748443922166,0.75973,2631.5,2631.4,0.75975]
[1748443922973,0.75976,2631.4,2631.3,1.486]
[1748443923168,1.5815,2631.7,2631.3,1.486]
[1748443923373,0.7597,2631.6,2631.5,0.75971]
[1748443924083,0.76532386,2631.9,2631.5,6.89933]
[1748443924378,0.00570386,2631.9,2631.8,0.75964]
[1748443925684,0.76532386,2631.9,2631.8,0.75964]
[1748443926382,0.75967,2631.8,2631.7,0.75964]
[1748443926781,0.76533386,2631.9,2631.8,0.75964]
[1748443928284,0.00570386,2631.9,2631.8,3.96744]
[1748443928781,0.00570386,2631.9,2631.8,5.55254]
[1748443929284,3.2078,2633.1,2631.8,9.7929]
[1748443929477,3.2078,2633.1,2632.5,1.89861]
[1748443929790,0.75938,2632.8,2632.7,0.75936]
[1748443930681,0.00570386,2633.0,2632.7,3.2078]
[1748443930885,0.76501386,2633.0,2632.9,0.75933]
[1748443931087,0.00570386,2633.0,2632.7,3.2078]
[1748443931283,0.75936,2632.8,2632.7,3.96717]
[1748443931486,0.00570386,2633.0,2632.9,0.75933]
[1748443932081,0.00570386,2633.0,2632.7,3.2078]
[1748443932281,0.76502386,2633.0,2632.9,0.75933]
[1748443932689,0.75933,2632.9,2632.8,2.28694]
[1748443933182,0.75933,2632.9,2632.5,0.00570386]
[1748443933183,5.0,2632.9,2632.5,0.00570386]
[1748443933487,5.0,2632.9,2631.7,5.10696]
[1748443933488,3.2078,2632.6,2631.7,5.10696]
[1748443933688,0.75955,2632.2,2632.1,0.75953]
[1748443933888,0.75949,2632.4,2632.3,0.75947]
[1748443934088,0.75953,2632.3,2632.2,0.75951]
[1748443934385,1.4798,2632.8,2632.7,0.75938]
[1748443934584,3.21350386,2633.0,2632.9,0.75933]
[1748443934585,0.00570386,2633.0,2632.9,0.75933]
[1748443934788,0.00570386,2633.0,2632.9,3.96713]
[1748443935089,3.2078,2633.9,2633.6,0.75911]
[1748443935289,2.2656,2633.7,2633.6,0.75911]
[1748443935789,2.26561,2633.7,2633.6,0.75912]
[1748443936090,5.6722,2634.3,2633.5,1.89785]
[1748443936392,0.75905,2633.9,2633.6,1.5598]
[1748443936586,0.75908,2633.8,2633.7,0.75907]
[1748443936888,0.75905,2633.9,2633.8,0.75905]
[1748443937685,0.75899,2634.1,2634.0,0.759]
[1748443937890,0.00570386,2634.2,2634.1,0.75898]
[1748443938488,0.00570386,2634.2,2634.0,1.5598]
[1748443938684,0.75898,2634.1,2634.0,1.5598]
[1748443938990,0.76466386,2634.2,2634.0,1.5598]
[1748443939386,0.00570386,2634.2,2634.1,0.75898]
[1748443940586,3.21350386,2634.2,2634.0,1.5598]
[1748443940788,3.21350386,2634.2,2634.1,3.96678]
[1748443940789,0.00570386,2634.2,2634.1,3.96678]
[1748443941291,0.00570386,2634.2,2634.1,0.75898]
[1748443941490,0.76465386,2634.2,2634.1,0.75898]
[1748443941791,0.00570386,2634.2,2634.1,0.75898]
[1748443941991,0.00570386,2634.2,2634.1,3.96678]
[1748443942190,0.00570386,2634.2,2634.1,8.96678]
[1748443943085,1.4822,2634.9,2634.8,0.75878]
[1748443943281,0.75879,2634.8,2634.5,3.2078]
[1748443943485,0.75877,2634.9,2634.8,0.75877]
[1748443943989,0.00569292,2635.1,2634.6,3.5125]
[1748443944191,0.75875,2635.0,2634.9,0.75874]
[1748443944381,1.4822,2635.0,2634.7,1.6154]
[1748443944586,0.75877,2634.9,2634.8,0.75876]
[1748443944982,0.75878,2634.8,2634.7,1.6154]
[1748443945189,1.89696,2634.8,2634.2,1.5111]
[1748443945493,0.75895,2634.2,2634.1,0.75897]
[1748443945685,0.75894,2634.3,2634.2,0.75894]
[1748443945887,1.5756,2634.5,2633.9,2.9648]
[1748443946085,0.75891,2634.4,2634.3,0.75891]
[1748443946288,0.75896,2634.2,2634.1,0.75896]
[1748443946487,0.75901,2634.0,2633.9,2.9648]
[1748443946686,0.75901,2634.1,2634.0,0.759]
[1748443946885,0.75897,2634.2,2634.1,0.75897]
[1748443947087,2.33457,2634.2,2634.1,0.75898]
[1748443947292,0.75898,2634.1,2634.0,1.4981]
[1748443947491,0.75901,2634.0,2633.9,2.22573]
[1748443948387,0.75904,2633.9,2633.8,0.76475386]
[1748443948584,0.75904,2633.9,2633.8,0.00570386]
[1748443948791,1.5633,2634.0,2633.9,0.75904]
[1748443948984,1.5633,2634.0,2633.9,2.22844]
[1748443949386,3.0931,2634.0,2633.9,2.22844]
[1748443949789,3.85211,2634.0,2633.9,2.22844]
[1748443950189,0.75894,2634.3,2634.2,0.75892]
[1748443950593,2.2887,2634.4,2634.3,0.75892]
[1748443950898,0.75898,2634.1,2634.0,0.75899]
[1748443951092,0.75901,2634.1,2634.0,0.75899]
[1748443951292,1.8974,2634.2,2633.8,0.00570386]
[1748443951498,0.75904,2633.9,2633.8,0.00570386]
[1748443951799,1.6142,2634.0,2633.9,0.75904]
[1748443952091,1.544,2634.1,2634.0,0.75901]
[1748443952401,1.6142,2634.3,2634.2,0.75895]
[1748443952992,2.37312,2634.3,2634.2,0.75895]
[1748443953499,1.6142,2634.3,2634.2,0.75895]
[1748443955096,1.544,2634.7,2634.6,0.75884]
[1748443955290,0.75889,2634.4,2634.1,1.5338]
[1748443955493,0.75895,2634.2,2634.1,1.5338]
[1748443955894,5.53822,2634.4,2634.1,1.5338]
[1748443956196,5.53822,2634.4,2634.3,0.75892]
[1748443956197,5.53819,2634.4,2634.3,0.75892]
[1748443956585,4.7793,2634.4,2633.8,0.00570386]
[1748443956789,0.75898,2634.2,2634.1,0.75895]
[1748443957297,4.7793,2634.4,2634.3,0.75892]
[1748443958101,5.53819,2634.4,2634.3,0.75892]
[1748443960500,4.7793,2634.4,2634.3,0.75892]
[1748443960890,1.544,2634.7,2634.6,0.75884]
[1748443961393,2.30281,2634.7,2634.6,0.75884]
[1748443962400,0.75887,2634.6,2634.5,0.75885]
[1748443962696,1.4123,2634.6,2634.5,0.75885]
[1748443963298,1.544,2634.7,2634.5,0.75885]
[1748443963499,1.544,2634.7,2634.4,1.409]
[1748443963500,1.544,2634.7,2634.6,2.23734]
[1748443963993,2.30281,2634.7,2634.6,2.23734]
[1748443964203,1.544,2634.7,2634.6,2.23734]
[1748443965102,2.30281,2634.7,2634.6,2.23734]
[1748443965297,3.83631,2634.7,2634.6,0.75884]
[1748443966000,3.0775,2634.7,2634.6,0.75884]
[1748443969299,3.83631,2634.7,2634.6,0.75884]